[Event "December 5 Early 2023"]
[Site "https://www.chess.com"]
[Date "2023.12.05"]
[Round "2"]
[White "Narva, Mai"]
[Black "Harutjunyan, Gevorg"]
[Result "0-1"]
[Board "43"]
[TimeControl "180+1"]
[WhiteFideId "4500512"]
[BlackFideId "13300873"]
[WhiteElo "2586"]
[BlackElo "2884"]
[WhiteTeam "EST"]
[BlackTeam "ARM"]
[WhiteClock "0:00:02"]
[BlackClock "0:00:10"]

1. e4 {[%clk 0:03:00]}  c6 {[%clk 0:02:55]} 2. Nc3 {[%clk 0:03:00]}  d5 {[%clk 0:02:55]} 3. Nf3 {[%clk 0:02:58]}  Bg4 {[%clk 0:02:50]} 4. h3 {[%clk 0:02:58]}  Bxf3 {[%clk 0:02:49]} 5. Qxf3 {[%clk 0:02:59]}  e6 {[%clk 0:02:49]} 6. d4 {[%clk 0:02:49]}  Nf6 {[%clk 0:02:47]} 7. Be2 {[%clk 0:02:48]}  dxe4 {[%clk 0:02:43]} 8. Qe3 {[%clk 0:02:48]}  Bb4 {[%clk 0:02:39]} 9. O-O {[%clk 0:02:40]}  Nd5 {[%clk 0:02:36]} 10. Qg3 {[%clk 0:02:29]}  Bxc3 {[%clk 0:02:20]} 11. bxc3 {[%clk 0:02:26]}  O-O {[%clk 0:02:20]} 12. c4 {[%clk 0:02:17]}  Ne7 {[%clk 0:02:15]} 13. Qe5 {[%clk 0:02:01]}  Nf5 {[%clk 0:01:47]} 14. Bb2 {[%clk 0:01:52]}  Qh4 {[%clk 0:01:33]} 15. g4 {[%clk 0:01:02]}  Ne7 {[%clk 0:01:06]} 16. d5 {[%clk 0:00:32]}  Qf6 {[%clk 0:01:05]} 17. Qxf6 {[%clk 0:00:24]}  gxf6 {[%clk 0:01:06]} 18. Bxf6 {[%clk 0:00:24]}  Ng6 {[%clk 0:01:07]} 19. d6 {[%clk 0:00:10]}  Nd7 {[%clk 0:01:06]} 20. Bg5 {[%clk 0:00:10]}  f6 {[%clk 0:00:49]} 21. Be3 {[%clk 0:00:10]}  f5 {[%clk 0:00:49]} 22. Bg5 {[%clk 0:00:09]}  Kg7 {[%clk 0:00:43]} 23. gxf5 {[%clk 0:00:07]}  exf5 {[%clk 0:00:42]} 24. Bh5 {[%clk 0:00:07]}  Nge5 {[%clk 0:00:29]} 25. Kh1 {[%clk 0:00:07]}  Rg8 {[%clk 0:00:29]} 26. Rg1 {[%clk 0:00:06]}  h6 {[%clk 0:00:26]} 27. Bf4+ {[%clk 0:00:05]}  Kh7 {[%clk 0:00:26]} 28. c5 {[%clk 0:00:04]}  Raf8 {[%clk 0:00:21]} 29. Rad1 {[%clk 0:00:02]}  Ng6 {[%clk 0:00:10]} 30. Bc1 {[%clk 0:00:02]}  Nge5 {[%clk 0:00:09]} 31. Bb2 {[%clk 0:00:02]}  Rg5 {[%clk 0:00:08]} 32. Be2 {[%clk 0:00:02]}  Rfg8 {[%clk 0:00:08]} 33. Bc1 {[%clk 0:00:02]}  Rxg1+ {[%clk 0:00:07]} 34. Rxg1 {[%clk 0:00:03]}  Rxg1+ {[%clk 0:00:08]} 35. Kxg1 {[%clk 0:00:04]}  Nxc5 {[%clk 0:00:07]} 36. Bh5 {[%clk 0:00:05]}  Ncd7 {[%clk 0:00:08]} 37. Bf4 {[%clk 0:00:05]}  Kg7 {[%clk 0:00:08]} 38. Be8 {[%clk 0:00:05]}  Kf6 {[%clk 0:00:09]} 39. h4 {[%clk 0:00:06]}  Nc5 {[%clk 0:00:08]} 40. Bxe5+ {[%clk 0:00:06]}  Kxe5 {[%clk 0:00:09]} 41. d7 {[%clk 0:00:06]}  Ne6 {[%clk 0:00:09]} 42. Bf7 {[%clk 0:00:06]}  Nd8 {[%clk 0:00:10]} 43. Bg6 {[%clk 0:00:06]}  Kf6 {[%clk 0:00:11]} 44. h5 {[%clk 0:00:06]}  Ne6 {[%clk 0:00:09]} 45. Kf1 {[%clk 0:00:06]}  c5 {[%clk 0:00:08]} 46. Ke2 {[%clk 0:00:06]}  b5 {[%clk 0:00:08]} 47. Kd2 {[%clk 0:00:06]}  b4 {[%clk 0:00:09]} 48. Ke3 {[%clk 0:00:06]}  a5 {[%clk 0:00:09]} 49. f3 {[%clk 0:00:07]}  exf3 {[%clk 0:00:08]} 50. Kxf3 {[%clk 0:00:08]}  Ke5 {[%clk 0:00:09]} 51. Ke3 {[%clk 0:00:08]}  f4+ {[%clk 0:00:09]} 52. Kf3 {[%clk 0:00:08]}  Nd8 {[%clk 0:00:10]} 53. Kg4 {[%clk 0:00:09]}  c4 {[%clk 0:00:10]} 54. Kf3 {[%clk 0:00:08]}  a4 {[%clk 0:00:11]} 55. Ke2 {[%clk 0:00:07]}  Kd6 {[%clk 0:00:10]} 56. Bf5 {[%clk 0:00:07]}  Nc6 {[%clk 0:00:10]} 57. Kf3 {[%clk 0:00:07]}  Ke5 {[%clk 0:00:10]} 58. Bg4 {[%clk 0:00:07]}  b3 {[%clk 0:00:09]} 59. cxb3 {[%clk 0:00:06]}  cxb3 {[%clk 0:00:10]} 60. axb3 {[%clk 0:00:05]}  a3 {[%clk 0:00:10]} 61. d8=Q {[%clk 0:00:02]}  Nxd8 {[%clk 0:00:10]} 0-1

[Event "December 5 Early 2023"]
[Site "https://www.chess.com"]
[Date "2023.12.05"]
[Round "2"]
[White "Bardyk, Artem"]
[Black "Glidzhain, Gor"]
[Result "1-0"]
[Board "46"]
[TimeControl "180+1"]
[WhiteFideId "34349979"]
[BlackFideId "24109932"]
[WhiteElo "2877"]
[BlackElo "2581"]
[WhiteTeam "RUS"]
[BlackTeam "RUS"]
[WhiteClock "0:00:22"]
[BlackClock "0:00:00"]

1. e4 {[%clk 0:03:00]}  c5 {[%clk 0:02:49]} 2. c3 {[%clk 0:03:00]}  e6 {[%clk 0:02:47]} 3. Nf3 {[%clk 0:03:00]}  d5 {[%clk 0:02:47]} 4. exd5 {[%clk 0:03:01]}  exd5 {[%clk 0:02:47]} 5. d4 {[%clk 0:03:00]}  cxd4 {[%clk 0:02:48]} 6. Nxd4 {[%clk 0:03:00]}  Nf6 {[%clk 0:02:48]} 7. Bb5+ {[%clk 0:02:55]}  Bd7 {[%clk 0:02:48]} 8. O-O {[%clk 0:02:55]}  Be7 {[%clk 0:02:48]} 9. Re1 {[%clk 0:02:54]}  O-O {[%clk 0:02:48]} 10. Nd2 {[%clk 0:02:52]}  Nc6 {[%clk 0:02:47]} 11. N2f3 {[%clk 0:02:52]}  h6 {[%clk 0:02:42]} 12. h3 {[%clk 0:02:51]}  Bd6 {[%clk 0:02:38]} 13. Be3 {[%clk 0:02:49]}  Re8 {[%clk 0:02:35]} 14. Nxc6 {[%clk 0:02:32]}  bxc6 {[%clk 0:02:34]} 15. Bd3 {[%clk 0:02:32]}  Ne4 {[%clk 0:02:23]} 16. Bxe4 {[%clk 0:02:25]}  Rxe4 {[%clk 0:02:23]} 17. Qd2 {[%clk 0:02:15]}  Qf6 {[%clk 0:02:20]} 18. Nd4 {[%clk 0:01:48]}  Rae8 {[%clk 0:02:12]} 19. Nb3 {[%clk 0:01:45]}  Qg6 {[%clk 0:02:03]} 20. f3 {[%clk 0:01:34]}  Rh4 {[%clk 0:01:14]} 21. Bc5 {[%clk 0:01:10]}  Rxe1+ {[%clk 0:01:01]} 22. Rxe1 {[%clk 0:01:11]}  Bf4 {[%clk 0:01:00]} 23. Be3 {[%clk 0:00:43]}  Bg3 {[%clk 0:00:46]} 24. Bf2 {[%clk 0:00:41]}  Bxh3 {[%clk 0:00:29]} 25. Bxg3 {[%clk 0:00:37]}  Qxg3 {[%clk 0:00:30]} 26. Qf2 {[%clk 0:00:36]}  Qxf2+ {[%clk 0:00:30]} 27. Kxf2 {[%clk 0:00:37]}  Be6 {[%clk 0:00:30]} 28. Nd4 {[%clk 0:00:35]}  c5 {[%clk 0:00:25]} 29. Nxe6 {[%clk 0:00:35]}  fxe6 {[%clk 0:00:26]} 30. Rxe6 {[%clk 0:00:36]}  Ra4 {[%clk 0:00:27]} 31. a3 {[%clk 0:00:35]}  d4 {[%clk 0:00:28]} 32. cxd4 {[%clk 0:00:33]}  cxd4 {[%clk 0:00:28]} 33. Rd6 {[%clk 0:00:31]}  Kf7 {[%clk 0:00:29]} 34. Ke2 {[%clk 0:00:29]}  Ke7 {[%clk 0:00:30]} 35. Rg6 {[%clk 0:00:27]}  Kf7 {[%clk 0:00:30]} 36. Rc6 {[%clk 0:00:28]}  Ra5 {[%clk 0:00:29]} 37. Kd3 {[%clk 0:00:27]}  Rb5 {[%clk 0:00:05]} 38. b4 {[%clk 0:00:26]}  a5 {[%clk 0:00:05]} 39. Kc4 {[%clk 0:00:26]}  Rb8 {[%clk 0:00:06]} 40. bxa5 {[%clk 0:00:25]}  Rd8 {[%clk 0:00:07]} 41. Kd3 {[%clk 0:00:23]}  Rd5 {[%clk 0:00:07]} 42. a6 {[%clk 0:00:21]}  Ra5 {[%clk 0:00:08]} 43. Kxd4 {[%clk 0:00:21]}  Rxa3 {[%clk 0:00:09]} 44. Kc5 {[%clk 0:00:22]}  Rc3+ {[%clk 0:00:05]} 45. Kb6 {[%clk 0:00:22]}  Rb3+ {[%clk 0:00:05]} 46. Kc7 {[%clk 0:00:22]}  Ra3 {[%clk 0:00:00]} 47. Kb7 {[%clk 0:00:22]} 1-0

[Event "December 5 Early 2023"]
[Site "https://www.chess.com"]
[Date "2023.12.05"]
[Round "2"]
[White "Chor, Kevin"]
[Black "Kazakouski, Valery"]
[Result "0-1"]
[Board "47"]
[TimeControl "180+1"]
[WhiteFideId "2090740"]
[BlackFideId "13507443"]
[WhiteElo "2580"]
[BlackElo "2877"]
[WhiteTeam "USA"]
[BlackTeam "LTU"]
[WhiteClock "0:00:01"]
[BlackClock "0:01:01"]

1. e4 {[%clk 0:02:59]}  c5 {[%clk 0:03:00]} 2. Nf3 {[%clk 0:02:59]}  a6 {[%clk 0:03:00]} 3. c3 {[%clk 0:02:59]}  d5 {[%clk 0:03:00]} 4. exd5 {[%clk 0:02:59]}  Qxd5 {[%clk 0:03:01]} 5. d4 {[%clk 0:02:58]}  Bg4 {[%clk 0:03:01]} 6. Be2 {[%clk 0:02:57]}  Nf6 {[%clk 0:03:01]} 7. Na3 {[%clk 0:02:44]}  e6 {[%clk 0:02:54]} 8. Be3 {[%clk 0:02:43]}  cxd4 {[%clk 0:02:51]} 9. Nxd4 {[%clk 0:02:42]}  Bxe2 {[%clk 0:02:50]} 10. Qxe2 {[%clk 0:02:42]}  Bxa3 {[%clk 0:02:51]} 11. bxa3 {[%clk 0:02:42]}  O-O {[%clk 0:02:50]} 12. O-O {[%clk 0:02:40]}  Nbd7 {[%clk 0:02:49]} 13. c4 {[%clk 0:02:38]}  Qa5 {[%clk 0:02:47]} 14. Rab1 {[%clk 0:02:38]}  b6 {[%clk 0:02:31]} 15. Bd2 {[%clk 0:02:21]}  Qa4 {[%clk 0:02:06]} 16. Rb3 {[%clk 0:01:46]}  Rfc8 {[%clk 0:02:00]} 17. Rc1 {[%clk 0:01:43]}  b5 {[%clk 0:01:57]} 18. Rbc3 {[%clk 0:01:18]}  bxc4 {[%clk 0:01:52]} 19. Rg3 {[%clk 0:01:12]}  c3 {[%clk 0:01:34]} 20. Bh6 {[%clk 0:01:04]}  g6 {[%clk 0:01:18]} 21. Qe3 {[%clk 0:00:23]}  Rc4 {[%clk 0:01:07]} 22. Nxe6 {[%clk 0:00:01]}  Re8 {[%clk 0:01:01]} 0-1

[Event "December 5 Early 2023"]
[Site "https://www.chess.com"]
[Date "2023.12.05"]
[Round "2"]
[White "Shuvalova, Polina"]
[Black "Cremisi, Daniel"]
[Result "0-1"]
[Board "48"]
[TimeControl "180+1"]
[WhiteFideId "24171760"]
[BlackFideId "2089882"]
[WhiteElo "2872"]
[BlackElo "2580"]
[WhiteTeam "RUS"]
[BlackTeam "USA"]
[WhiteClock "0:00:09"]
[BlackClock "0:00:10"]

1. e4 {[%clk 0:02:31]}  e6 {[%clk 0:03:00]} 2. d4 {[%clk 0:02:30]}  d5 {[%clk 0:03:00]} 3. Nd2 {[%clk 0:02:31]}  dxe4 {[%clk 0:03:00]} 4. Nxe4 {[%clk 0:02:30]}  Nd7 {[%clk 0:03:00]} 5. Nf3 {[%clk 0:02:29]}  Be7 {[%clk 0:03:01]} 6. Bd3 {[%clk 0:02:28]}  Ngf6 {[%clk 0:03:01]} 7. Qe2 {[%clk 0:02:29]}  b6 {[%clk 0:02:59]} 8. Nxf6+ {[%clk 0:02:25]}  Nxf6 {[%clk 0:02:54]} 9. Bb5+ {[%clk 0:02:25]}  Bd7 {[%clk 0:02:42]} 10. Ne5 {[%clk 0:02:24]}  O-O {[%clk 0:02:29]} 11. Nxd7 {[%clk 0:02:21]}  Nxd7 {[%clk 0:02:29]} 12. O-O {[%clk 0:02:19]}  Nf6 {[%clk 0:02:27]} 13. c3 {[%clk 0:02:16]}  c5 {[%clk 0:02:26]} 14. Rd1 {[%clk 0:02:12]}  Qc7 {[%clk 0:02:23]} 15. Bg5 {[%clk 0:02:07]}  cxd4 {[%clk 0:02:21]} 16. Rxd4 {[%clk 0:02:05]}  Rad8 {[%clk 0:02:20]} 17. Rad1 {[%clk 0:02:04]}  Rxd4 {[%clk 0:02:20]} 18. Rxd4 {[%clk 0:02:05]}  Rd8 {[%clk 0:02:18]} 19. Qd1 {[%clk 0:01:50]}  Rxd4 {[%clk 0:02:17]} 20. Qxd4 {[%clk 0:01:51]}  Qc5 {[%clk 0:02:02]} 21. Qxc5 {[%clk 0:01:46]}  Bxc5 {[%clk 0:02:00]} 22. Bc6 {[%clk 0:01:38]}  h6 {[%clk 0:01:37]} 23. Bd2 {[%clk 0:01:35]}  Ng4 {[%clk 0:01:33]} 24. Be1 {[%clk 0:01:35]}  Kf8 {[%clk 0:01:26]} 25. h3 {[%clk 0:01:29]}  Ne5 {[%clk 0:01:25]} 26. Bb5 {[%clk 0:01:24]}  Ke7 {[%clk 0:01:17]} 27. Kf1 {[%clk 0:01:23]}  Bd6 {[%clk 0:01:16]} 28. Ke2 {[%clk 0:01:20]}  Nd7 {[%clk 0:01:16]} 29. Bd2 {[%clk 0:01:10]}  Nf6 {[%clk 0:01:15]} 30. g3 {[%clk 0:01:07]}  Nd5 {[%clk 0:01:13]} 31. a3 {[%clk 0:01:06]}  h5 {[%clk 0:01:08]} 32. h4 {[%clk 0:01:05]}  f5 {[%clk 0:00:50]} 33. c4 {[%clk 0:00:57]}  Nf6 {[%clk 0:00:50]} 34. Bc6 {[%clk 0:00:57]}  Bc5 {[%clk 0:00:44]} 35. Bf3 {[%clk 0:00:46]}  g6 {[%clk 0:00:40]} 36. Bc3 {[%clk 0:00:44]}  Ng4 {[%clk 0:00:35]} 37. b4 {[%clk 0:00:41]}  Bd6 {[%clk 0:00:24]} 38. Bb7 {[%clk 0:00:39]}  Be5 {[%clk 0:00:20]} 39. Be1 {[%clk 0:00:38]}  Bb2 {[%clk 0:00:20]} 40. a4 {[%clk 0:00:38]}  Be5 {[%clk 0:00:20]} 41. Kd3 {[%clk 0:00:34]}  Bd6 {[%clk 0:00:19]} 42. Kc3 {[%clk 0:00:30]}  Nf6 {[%clk 0:00:19]} 43. Kb3 {[%clk 0:00:25]}  Kd7 {[%clk 0:00:19]} 44. a5 {[%clk 0:00:21]}  Kc7 {[%clk 0:00:18]} 45. a6 {[%clk 0:00:20]}  Ng4 {[%clk 0:00:16]} 46. Ka4 {[%clk 0:00:20]}  Ne5 {[%clk 0:00:16]} 47. Kb5 {[%clk 0:00:19]}  Nd3 {[%clk 0:00:16]} 48. Bc3 {[%clk 0:00:13]}  Nxf2 {[%clk 0:00:16]} 49. Bd4 {[%clk 0:00:12]}  Ne4 {[%clk 0:00:15]} 50. c5 {[%clk 0:00:12]}  bxc5 {[%clk 0:00:13]} 51. bxc5 {[%clk 0:00:13]}  Bxg3 {[%clk 0:00:14]} 52. c6 {[%clk 0:00:14]}  Nd6+ {[%clk 0:00:12]} 53. Kb4 {[%clk 0:00:13]}  Nxb7 {[%clk 0:00:10]} 54. cxb7 {[%clk 0:00:07]}  Kb8 {[%clk 0:00:08]} 55. Kb5 {[%clk 0:00:06]}  Bd6 {[%clk 0:00:06]} 56. Kc6 {[%clk 0:00:06]}  Bh2 {[%clk 0:00:06]} 57. Kd7 {[%clk 0:00:04]}  e5 {[%clk 0:00:06]} 58. Bc5 {[%clk 0:00:04]}  e4 {[%clk 0:00:07]} 59. Be3 {[%clk 0:00:02]}  f4 {[%clk 0:00:06]} 60. Bd4 {[%clk 0:00:02]}  f3 {[%clk 0:00:06]} 61. Be3 {[%clk 0:00:03]}  Be5 {[%clk 0:00:06]} 62. Bf2 {[%clk 0:00:03]}  Bf4 {[%clk 0:00:06]} 63. Bc5 {[%clk 0:00:03]}  e3 {[%clk 0:00:06]} 64. Be7 {[%clk 0:00:03]}  f2 {[%clk 0:00:06]} 65. Bg5 {[%clk 0:00:03]}  Bxg5 {[%clk 0:00:05]} 66. hxg5 {[%clk 0:00:04]}  f1=Q {[%clk 0:00:05]} 67. Ke7 {[%clk 0:00:04]}  Qxa6 {[%clk 0:00:06]} 68. Kf7 {[%clk 0:00:04]}  Qb6 {[%clk 0:00:07]} 69. Kg7 {[%clk 0:00:05]}  a5 {[%clk 0:00:08]} 70. Kh6 {[%clk 0:00:06]}  a4 {[%clk 0:00:09]} 71. Kh7 {[%clk 0:00:07]}  a3 {[%clk 0:00:10]} 72. Kg8 {[%clk 0:00:07]}  a2 {[%clk 0:00:11]} 73. Kh7 {[%clk 0:00:08]}  a1=Q {[%clk 0:00:11]} 74. Kh6 {[%clk 0:00:09]}  Qh8# {[%clk 0:00:10]} 0-1

[Event "December 5 Early 2023"]
[Site "https://www.chess.com"]
[Date "2023.12.05"]
[Round "2"]
[White "Hjartarson, Johann"]
[Black "Movsesian, Sergei"]
[Result "0-1"]
[Board "51"]
[TimeControl "180+1"]
[WhiteFideId "2300044"]
[BlackFideId "310204"]
[WhiteElo "2575"]
[BlackElo "2843"]
[WhiteTeam "ISL"]
[BlackTeam "ARM"]
[WhiteClock "0:00:51"]
[BlackClock "0:01:06"]

1. c4 {[%clk 0:03:00]}  e5 {[%clk 0:02:59]} 2. g3 {[%clk 0:03:00]}  Nc6 {[%clk 0:02:59]} 3. Bg2 {[%clk 0:03:00]}  Nf6 {[%clk 0:02:58]} 4. Nc3 {[%clk 0:03:00]}  Bc5 {[%clk 0:02:59]} 5. e3 {[%clk 0:02:59]}  a6 {[%clk 0:02:58]} 6. a3 {[%clk 0:02:57]}  Ba7 {[%clk 0:02:58]} 7. Nge2 {[%clk 0:02:57]}  O-O {[%clk 0:02:57]} 8. O-O {[%clk 0:02:57]}  d6 {[%clk 0:02:57]} 9. d3 {[%clk 0:02:56]}  Be6 {[%clk 0:02:54]} 10. b4 {[%clk 0:02:55]}  d5 {[%clk 0:02:52]} 11. cxd5 {[%clk 0:02:55]}  Nxd5 {[%clk 0:02:52]} 12. Bb2 {[%clk 0:02:51]}  Qd7 {[%clk 0:02:52]} 13. Qc2 {[%clk 0:02:43]}  Rad8 {[%clk 0:02:49]} 14. Rfd1 {[%clk 0:02:42]}  h6 {[%clk 0:02:38]} 15. Ne4 {[%clk 0:02:40]}  f5 {[%clk 0:02:34]} 16. Nc5 {[%clk 0:02:39]}  Bxc5 {[%clk 0:02:34]} 17. Qxc5 {[%clk 0:02:39]}  f4 {[%clk 0:02:34]} 18. exf4 {[%clk 0:02:25]}  exf4 {[%clk 0:02:33]} 19. Nd4 {[%clk 0:02:21]}  Nxd4 {[%clk 0:02:22]} 20. Qxd4 {[%clk 0:02:21]}  Qf7 {[%clk 0:02:22]} 21. Re1 {[%clk 0:01:38]}  Rd7 {[%clk 0:01:33]} 22. Rac1 {[%clk 0:01:22]}  Ne3 {[%clk 0:01:13]} 23. Qxg7+ {[%clk 0:00:59]}  Qxg7 {[%clk 0:01:12]} 24. Bxg7 {[%clk 0:00:59]}  Kxg7 {[%clk 0:01:05]} 25. fxe3 {[%clk 0:00:51]}  f3 {[%clk 0:01:06]} 0-1

[Event "December 5 Early 2023"]
[Site "https://www.chess.com"]
[Date "2023.12.05"]
[Round "2"]
[White "Lund, Gunnar"]
[Black "Gharibyan, Mamikon"]
[Result "1-0"]
[Board "53"]
[TimeControl "180+1"]
[WhiteFideId "1520814"]
[BlackFideId "13308300"]
[WhiteElo "2569"]
[BlackElo "2837"]
[WhiteTeam "NOR"]
[BlackTeam "ARM"]
[WhiteClock "0:00:13"]
[BlackClock "0:00:00"]

1. d4 {[%clk 0:02:48]}  d5 {[%clk 0:02:59]} 2. c4 {[%clk 0:02:47]}  e6 {[%clk 0:02:59]} 3. Nf3 {[%clk 0:02:32]}  Nf6 {[%clk 0:02:59]} 4. g3 {[%clk 0:02:33]}  Bb4+ {[%clk 0:02:57]} 5. Bd2 {[%clk 0:02:33]}  Be7 {[%clk 0:02:53]} 6. Bg2 {[%clk 0:02:33]}  O-O {[%clk 0:02:53]} 7. O-O {[%clk 0:02:32]}  Nbd7 {[%clk 0:02:54]} 8. Qc2 {[%clk 0:02:31]}  c6 {[%clk 0:02:54]} 9. Bf4 {[%clk 0:02:27]}  b6 {[%clk 0:02:52]} 10. Nbd2 {[%clk 0:02:18]}  Nh5 {[%clk 0:02:49]} 11. Ne5 {[%clk 0:01:58]}  Nxf4 {[%clk 0:02:39]} 12. gxf4 {[%clk 0:01:54]}  Nxe5 {[%clk 0:02:23]} 13. fxe5 {[%clk 0:01:52]}  c5 {[%clk 0:02:15]} 14. Rad1 {[%clk 0:01:43]}  cxd4 {[%clk 0:02:11]} 15. cxd5 {[%clk 0:01:41]}  exd5 {[%clk 0:02:08]} 16. Nb3 {[%clk 0:01:41]}  Bc5 {[%clk 0:01:43]} 17. Nxc5 {[%clk 0:01:39]}  bxc5 {[%clk 0:01:33]} 18. Qxc5 {[%clk 0:01:40]}  Ba6 {[%clk 0:01:17]} 19. Rfe1 {[%clk 0:01:25]}  Qg5 {[%clk 0:01:08]} 20. Qxd4 {[%clk 0:01:21]}  Rac8 {[%clk 0:01:07]} 21. Rd2 {[%clk 0:01:15]}  Rc4 {[%clk 0:01:04]} 22. Qxd5 {[%clk 0:01:08]}  Rg4 {[%clk 0:01:03]} 23. Red1 {[%clk 0:00:53]}  Bc4 {[%clk 0:00:54]} 24. Qf3 {[%clk 0:00:47]}  Bxa2 {[%clk 0:00:52]} 25. h3 {[%clk 0:00:45]}  Rf4 {[%clk 0:00:48]} 26. Qg3 {[%clk 0:00:45]}  Qxe5 {[%clk 0:00:40]} 27. e3 {[%clk 0:00:42]}  Rf5 {[%clk 0:00:39]} 28. Qxe5 {[%clk 0:00:41]}  Rxe5 {[%clk 0:00:40]} 29. Ra1 {[%clk 0:00:42]}  Be6 {[%clk 0:00:34]} 30. Rxa7 {[%clk 0:00:41]}  g5 {[%clk 0:00:35]} 31. b4 {[%clk 0:00:39]}  Rb8 {[%clk 0:00:32]} 32. Rd4 {[%clk 0:00:29]}  Reb5 {[%clk 0:00:31]} 33. Ra5 {[%clk 0:00:30]}  Rxb4 {[%clk 0:00:16]} 34. Rxg5+ {[%clk 0:00:29]}  Kf8 {[%clk 0:00:16]} 35. Rxb4 {[%clk 0:00:27]}  Rxb4 {[%clk 0:00:17]} 36. Ra5 {[%clk 0:00:27]}  Kg7 {[%clk 0:00:17]} 37. Kh2 {[%clk 0:00:27]}  h6 {[%clk 0:00:17]} 38. Kg3 {[%clk 0:00:26]}  Rb2 {[%clk 0:00:18]} 39. Bf3 {[%clk 0:00:26]}  Rb3 {[%clk 0:00:18]} 40. h4 {[%clk 0:00:26]}  Kf6 {[%clk 0:00:18]} 41. Rc5 {[%clk 0:00:26]}  Rb1 {[%clk 0:00:18]} 42. Ra5 {[%clk 0:00:25]}  Rg1+ {[%clk 0:00:18]} 43. Kh2 {[%clk 0:00:25]}  Rb1 {[%clk 0:00:19]} 44. Ra4 {[%clk 0:00:24]}  Rf1 {[%clk 0:00:18]} 45. Kg2 {[%clk 0:00:23]}  Rb1 {[%clk 0:00:18]} 46. Rf4+ {[%clk 0:00:24]}  Kg7 {[%clk 0:00:18]} 47. Bg4 {[%clk 0:00:23]}  Bd5+ {[%clk 0:00:17]} 48. Bf3 {[%clk 0:00:23]}  Be6 {[%clk 0:00:17]} 49. Rd4 {[%clk 0:00:22]}  Rc1 {[%clk 0:00:16]} 50. Kg3 {[%clk 0:00:22]}  Rg1+ {[%clk 0:00:15]} 51. Bg2 {[%clk 0:00:23]}  Kf6 {[%clk 0:00:14]} 52. f4 {[%clk 0:00:23]}  Re1 {[%clk 0:00:14]} 53. Kf2 {[%clk 0:00:21]}  Rb1 {[%clk 0:00:14]} 54. e4 {[%clk 0:00:20]}  Rb2+ {[%clk 0:00:14]} 55. Kg3 {[%clk 0:00:20]}  Rb3+ {[%clk 0:00:14]} 56. Bf3 {[%clk 0:00:20]}  h5 {[%clk 0:00:12]} 57. f5 {[%clk 0:00:18]}  Ke5 {[%clk 0:00:04]} 58. Ra4 {[%clk 0:00:15]}  Bd7 {[%clk 0:00:05]} 59. Ra5+ {[%clk 0:00:15]}  Kf6 {[%clk 0:00:05]} 60. Kf4 {[%clk 0:00:15]}  Rb4 {[%clk 0:00:05]} 61. Rd5 {[%clk 0:00:15]}  Ba4 {[%clk 0:00:04]} 62. Bxh5 {[%clk 0:00:15]}  Bc2 {[%clk 0:00:04]} 63. Bf3 {[%clk 0:00:15]}  Ra4 {[%clk 0:00:02]} 64. Rd6+ {[%clk 0:00:15]}  Kg7 {[%clk 0:00:02]} 65. Rc6 {[%clk 0:00:16]}  Bb1 {[%clk 0:00:02]} 66. h5 {[%clk 0:00:16]}  f6 {[%clk 0:00:02]} 67. h6+ {[%clk 0:00:16]}  Kxh6 {[%clk 0:00:02]} 68. Rxf6+ {[%clk 0:00:16]}  Kg7 {[%clk 0:00:03]} 69. Re6 {[%clk 0:00:17]}  Kf7 {[%clk 0:00:04]} 70. Bh5+ {[%clk 0:00:17]}  Kg7 {[%clk 0:00:04]} 71. Bf3 {[%clk 0:00:17]}  Ba2 {[%clk 0:00:04]} 72. Rb6 {[%clk 0:00:17]}  Kf7 {[%clk 0:00:04]} 73. Kg5 {[%clk 0:00:16]}  Ra5 {[%clk 0:00:05]} 74. Rb7+ {[%clk 0:00:14]}  Kf8 {[%clk 0:00:04]} 75. Kf6 {[%clk 0:00:13]}  Ke8 {[%clk 0:00:05]} 76. Rb8+ {[%clk 0:00:13]}  Kd7 {[%clk 0:00:05]} 77. e5 {[%clk 0:00:13]}  Ra6+ {[%clk 0:00:05]} 78. e6+ {[%clk 0:00:14]}  Bxe6 {[%clk 0:00:05]} 79. Rb7+ {[%clk 0:00:13]}  Kd6 {[%clk 0:00:02]} 80. fxe6 {[%clk 0:00:13]}  Ra3 {[%clk 0:00:03]} 81. Rd7+ {[%clk 0:00:13]}  Kc5 {[%clk 0:00:00]} 82. Bg4 {[%clk 0:00:13]} 1-0

[Event "December 5 Early 2023"]
[Site "https://www.chess.com"]
[Date "2023.12.05"]
[Round "2"]
[White "Aydin, Gulenay"]
[Black "Klukin, Kirill"]
[Result "0-1"]
[Board "54"]
[TimeControl "180+1"]
[WhiteFideId "34557431"]
[BlackFideId "24199273"]
[WhiteElo "2568"]
[BlackElo "2834"]
[WhiteTeam "TUR"]
[BlackTeam "RUS"]
[WhiteClock "0:00:01"]
[BlackClock "0:01:08"]

1. e4 {[%clk 0:03:00]}  c5 {[%clk 0:02:59]} 2. Nf3 {[%clk 0:03:01]}  g6 {[%clk 0:02:59]} 3. c3 {[%clk 0:03:00]}  Bg7 {[%clk 0:02:59]} 4. d4 {[%clk 0:03:00]}  cxd4 {[%clk 0:03:00]} 5. cxd4 {[%clk 0:03:01]}  d5 {[%clk 0:03:01]} 6. e5 {[%clk 0:03:02]}  a6 {[%clk 0:03:01]} 7. h3 {[%clk 0:02:30]}  Nc6 {[%clk 0:02:58]} 8. Bd3 {[%clk 0:02:17]}  f6 {[%clk 0:02:58]} 9. O-O {[%clk 0:01:50]}  fxe5 {[%clk 0:02:55]} 10. dxe5 {[%clk 0:01:51]}  e6 {[%clk 0:02:53]} 11. Re1 {[%clk 0:01:44]}  Nge7 {[%clk 0:02:53]} 12. Nbd2 {[%clk 0:01:40]}  O-O {[%clk 0:02:53]} 13. Nf1 {[%clk 0:01:41]}  Nf5 {[%clk 0:02:49]} 14. Bg5 {[%clk 0:01:27]}  Qb6 {[%clk 0:02:47]} 15. Qd2 {[%clk 0:01:27]}  Bd7 {[%clk 0:02:43]} 16. Ne3 {[%clk 0:01:11]}  Nxe3 {[%clk 0:02:36]} 17. Bxe3 {[%clk 0:01:12]}  Qb4 {[%clk 0:02:30]} 18. Qc1 {[%clk 0:00:58]}  Rfc8 {[%clk 0:02:23]} 19. a3 {[%clk 0:00:39]}  Qf8 {[%clk 0:02:18]} 20. Bc5 {[%clk 0:00:22]}  Qd8 {[%clk 0:02:12]} 21. Qe3 {[%clk 0:00:18]}  Bf8 {[%clk 0:01:56]} 22. Bb6 {[%clk 0:00:16]}  Qe7 {[%clk 0:01:54]} 23. b4 {[%clk 0:00:15]}  Qg7 {[%clk 0:01:33]} 24. h4 {[%clk 0:00:15]}  Qh6 {[%clk 0:01:33]} 25. Qe2 {[%clk 0:00:11]}  Be7 {[%clk 0:01:30]} 26. Be3 {[%clk 0:00:12]}  Qg7 {[%clk 0:01:30]} 27. h5 {[%clk 0:00:11]}  gxh5 {[%clk 0:01:26]} 28. Bf4 {[%clk 0:00:10]}  Rf8 {[%clk 0:01:24]} 29. Bh2 {[%clk 0:00:10]}  h4 {[%clk 0:01:21]} 30. Kh1 {[%clk 0:00:10]}  Be8 {[%clk 0:01:20]} 31. Rg1 {[%clk 0:00:11]}  Bh5 {[%clk 0:01:21]} 32. Qe3 {[%clk 0:00:10]}  Kh8 {[%clk 0:01:17]} 33. a4 {[%clk 0:00:06]}  h3 {[%clk 0:01:17]} 34. b5 {[%clk 0:00:04]}  axb5 {[%clk 0:01:12]} 35. axb5 {[%clk 0:00:04]}  hxg2+ {[%clk 0:01:12]} 36. Rxg2 {[%clk 0:00:02]}  Rxa1+ {[%clk 0:01:13]} 37. Ng1 {[%clk 0:00:03]}  Bf3 {[%clk 0:01:07]} 38. Qxf3 {[%clk 0:00:03]}  Rxf3 {[%clk 0:01:07]} 39. Rxg7 {[%clk 0:00:01]}  Kxg7 {[%clk 0:01:08]} 0-1